[Event "Live Chess"]
[Site "Chess.com"]
[Date "2023.05.20"]
[Round "-"]
[White "kevinmilleruk"]
[Black "MaximKhimchenko"]
[Result "0-1"]
[WhiteElo "1114"]
[BlackElo "1349"]
[TimeControl "300"]
[EndTime "10:44:14 PDT"]
[Termination "MaximKhimchenko won by checkmate"]

1. c4 {[%clk 0:04:57.1]} 1... e5 {[%clk 0:04:50.1]} 2. Nc3 {[%clk 0:04:54.8]}
2... Bc5 {[%clk 0:04:38.1]} 3. g3 {[%clk 0:04:52.9]} 3... Nf6 {[%clk 0:04:36.1]}
4. Bg2 {[%clk 0:04:47.2]} 4... Nc6 {[%clk 0:04:34]} 5. d3 {[%clk 0:04:41.7]}
5... d6 {[%clk 0:04:24.9]} 6. Bg5 {[%clk 0:04:40.5]} 6... h6 {[%clk 0:04:22.1]}
7. Bxf6 {[%clk 0:04:39.1]} 7... Qxf6 {[%clk 0:04:22]} 8. Nf3 {[%clk 0:04:37.7]}
8... Nd4 {[%clk 0:04:18.9]} 9. O-O {[%clk 0:04:35.5]} 9... Nxf3+ {[%clk
0:04:15.8]} 10. exf3 {[%clk 0:04:32.3]} 10... h5 {[%clk 0:04:13.5]} 11. Nd5
{[%clk 0:04:31.2]} 11... Qd8 {[%clk 0:04:10.8]} 12. h4 {[%clk 0:04:28.6]} 12...
g5 {[%clk 0:03:53.2]} 13. Qa4+ {[%clk 0:04:12.4]} 13... c6 {[%clk 0:03:50.9]}
14. Ne3 {[%clk 0:04:09.2]} 14... Bxe3 {[%clk 0:03:48]} 15. fxe3 {[%clk
0:04:07.3]} 15... gxh4 {[%clk 0:03:47.9]} 16. gxh4 {[%clk 0:04:03.2]} 16... Qxh4
{[%clk 0:03:47.8]} 17. d4 {[%clk 0:03:59.7]} 17... Qg3 {[%clk 0:03:42.4]} 18. d5
{[%clk 0:03:55.2]} 18... Bh3 {[%clk 0:03:16.9]} 19. Rf2 {[%clk 0:03:46.8]} 19...
Rg8 {[%clk 0:03:14.7]} 20. Qc2 {[%clk 0:03:40.9]} 20... Ke7 {[%clk 0:03:09]} 21.
dxc6 {[%clk 0:03:25.9]} 21... bxc6 {[%clk 0:03:03.1]} 22. c5 {[%clk 0:03:24.4]}
22... d5 {[%clk 0:02:59.6]} 23. b4 {[%clk 0:03:16.9]} 23... Rg6 {[%clk
0:02:54.7]} 24. Kh1 {[%clk 0:03:09.1]} 24... Bxg2+ {[%clk 0:02:51.7]} 25. Rxg2
{[%clk 0:03:07.8]} 25... Qh3+ {[%clk 0:02:51]} 26. Rh2 {[%clk 0:03:03.9]} 26...
Qxf3+ {[%clk 0:02:40.5]} 27. Rg2 {[%clk 0:02:55.3]} 27... Rag8 {[%clk
0:02:38.3]} 28. Rg1 {[%clk 0:02:53.4]} 28... Qh3+ {[%clk 0:02:37.2]} 29. Rh2
{[%clk 0:02:51]} 29... Rxg1# {[%clk 0:02:37.1]} 0-1

[Event "Live Chess"]
[Site "Chess.com"]
[Date "2023.05.20"]
[Round "-"]
[White "ramses-IIG"]
[Black "flyingpuffins"]
[Result "0-1"]
[WhiteElo "773"]
[BlackElo "1976"]
[TimeControl "300"]
[EndTime "10:44:16 PDT"]
[Termination "flyingpuffins won by resignation"]

1. e4 {[%clk 0:04:58.8]} 1... c5 {[%clk 0:04:57.6]} 2. Nf3 {[%clk 0:04:58.7]}
2... g6 {[%clk 0:04:56.9]} 3. d4 {[%clk 0:04:55.7]} 3... cxd4 {[%clk 0:04:56.8]}
4. Nxd4 {[%clk 0:04:54.9]} 4... Nc6 {[%clk 0:04:56.4]} 5. Nxc6 {[%clk
0:04:52.8]} 5... bxc6 {[%clk 0:04:55.3]} 6. Qf3 {[%clk 0:04:46.1]} 6... Bg7
{[%clk 0:04:52.2]} 7. Bc4 {[%clk 0:04:45.3]} 7... Nf6 {[%clk 0:04:42.3]} 8. c3
{[%clk 0:04:41.8]} 8... O-O {[%clk 0:04:40.7]} 9. h4 {[%clk 0:04:39.7]} 9... d5
{[%clk 0:04:39]} 10. exd5 {[%clk 0:04:35.4]} 10... cxd5 {[%clk 0:04:38.2]} 11.
Be2 {[%clk 0:04:30.9]} 11... Bg4 {[%clk 0:04:37.1]} 12. Qe3 {[%clk 0:04:26.3]}
12... Bxe2 {[%clk 0:04:32.6]} 13. Qxe2 {[%clk 0:04:26.2]} 13... e5 {[%clk
0:04:27.6]} 14. Bg5 {[%clk 0:04:21.8]} 14... d4 {[%clk 0:04:25.1]} 15. Na3
{[%clk 0:03:58.2]} 15... dxc3 {[%clk 0:04:22.2]} 16. bxc3 {[%clk 0:03:58.1]}
16... e4 {[%clk 0:04:21.7]} 17. Qe3 {[%clk 0:03:54.5]} 17... Qa5 {[%clk
0:04:13.9]} 18. Nc4 {[%clk 0:03:34.5]} 18... Qa6 {[%clk 0:04:09.6]} 19. Ne5
{[%clk 0:03:26.6]} 19... Nd5 {[%clk 0:04:06.9]} 20. Qxe4 {[%clk 0:03:14.5]}
20... Bxe5 {[%clk 0:03:40.5]} 21. Qxd5 {[%clk 0:03:06.3]} 21... Bxc3+ {[%clk
0:03:39.3]} 22. Kd1 {[%clk 0:03:00.6]} 22... Bxa1 {[%clk 0:03:37.2]} 23. Kc1
{[%clk 0:02:56.6]} 23... Rac8+ {[%clk 0:03:33.6]} 24. Kb1 {[%clk 0:02:54.8]}
24... Bg7 {[%clk 0:03:29.3]} 25. Be7 {[%clk 0:02:40.6]} 25... Qb6+ {[%clk
0:03:26.7]} 26. Qb3 {[%clk 0:02:38.6]} 26... Qxb3+ {[%clk 0:03:21]} 27. axb3
{[%clk 0:02:38.5]} 27... Rfe8 {[%clk 0:03:20.6]} 28. Bc5 {[%clk 0:02:31.7]}
28... Rxc5 {[%clk 0:03:17.6]} 0-1

[Event "Live Chess"]
[Site "Chess.com"]
[Date "2023.05.20"]
[Round "-"]
[White "martynstanley"]
[Black "ReeceHockton"]
[Result "1-0"]
[WhiteElo "989"]
[BlackElo "323"]
[TimeControl "300"]
[EndTime "10:44:21 PDT"]
[Termination "martynstanley won by resignation"]

1. d4 {[%clk 0:04:53.1]} 1... d5 {[%clk 0:04:56.4]} 2. e3 {[%clk 0:04:52.4]}
2... c6 {[%clk 0:04:53.9]} 3. Bd3 {[%clk 0:04:51.4]} 3... Nd7 {[%clk 0:04:52.9]}
4. f4 {[%clk 0:04:50.7]} 4... e5 {[%clk 0:04:51]} 5. fxe5 {[%clk 0:04:49.5]}
5... f6 {[%clk 0:04:50]} 6. exf6 {[%clk 0:04:48.3]} 6... gxf6 {[%clk 0:04:49.2]}
7. Nf3 {[%clk 0:04:47.6]} 7... Bd6 {[%clk 0:04:47.2]} 8. O-O {[%clk 0:04:46.7]}
8... Ne7 {[%clk 0:04:42.2]} 9. c3 {[%clk 0:04:45.3]} 9... a6 {[%clk 0:04:40.6]}
10. Nbd2 {[%clk 0:04:44.2]} 10... b5 {[%clk 0:04:37.7]} 11. Nh4 {[%clk
0:04:42.6]} 11... Ra7 {[%clk 0:04:36.3]} 12. Nf5 {[%clk 0:04:40.4]} 12... Nxf5
{[%clk 0:04:33.9]} 13. Bxf5 {[%clk 0:04:39.5]} 13... Rg8 {[%clk 0:04:26.2]} 14.
Qh5+ {[%clk 0:04:38.2]} 14... Ke7 {[%clk 0:04:23.1]} 15. Qxh7+ {[%clk
0:04:36.9]} 15... Kf8 {[%clk 0:04:15.8]} 16. Qh6+ {[%clk 0:04:31.7]} 16... Rg7
{[%clk 0:04:04.6]} 17. Bxd7 {[%clk 0:04:27.6]} 17... Bxd7 {[%clk 0:04:01.3]} 18.
Rxf6+ {[%clk 0:04:26.6]} 18... Kg8 {[%clk 0:03:52.6]} 19. Rxd6 {[%clk 0:04:25]}
19... Qg5 {[%clk 0:03:41.8]} 20. Qxg5 {[%clk 0:04:22.7]} 20... Rxg5 {[%clk
0:03:40.5]} 21. Nf3 {[%clk 0:04:20.7]} 21... Bh3 {[%clk 0:03:36.8]} 22. g3
{[%clk 0:04:18.9]} 22... Rag7 {[%clk 0:03:31.2]} 23. Nxg5 {[%clk 0:04:17.9]}
23... Rxg5 {[%clk 0:03:28.7]} 24. Rxc6 {[%clk 0:04:16.8]} 24... Rxg3+ {[%clk
0:03:22.7]} 25. hxg3 {[%clk 0:04:15.5]} 1-0

[Event "Live Chess"]
[Site "Chess.com"]
[Date "2023.05.20"]
[Round "-"]
[White "Tushinskiy"]
[Black "amazinggoalkeeper"]
[Result "1-0"]
[WhiteElo "2106"]
[BlackElo "499"]
[TimeControl "300"]
[EndTime "10:44:27 PDT"]
[Termination "Tushinskiy won by resignation"]

1. d4 {[%clk 0:04:58]} 1... d5 {[%clk 0:04:58.9]} 2. c3 {[%clk 0:04:57.9]} 2...
Nc6 {[%clk 0:04:57.6]} 3. Nf3 {[%clk 0:04:57.8]} 3... Bf5 {[%clk 0:04:55.7]} 4.
Bf4 {[%clk 0:04:57]} 4... Nf6 {[%clk 0:04:53.2]} 5. Nbd2 {[%clk 0:04:54.5]} 5...
Ne4 {[%clk 0:04:52]} 6. e3 {[%clk 0:04:52.7]} 6... Nxd2 {[%clk 0:04:49.8]} 7.
Qxd2 {[%clk 0:04:50.5]} 7... Be4 {[%clk 0:04:48.7]} 8. Be2 {[%clk 0:04:48.7]}
8... g6 {[%clk 0:04:47.6]} 9. O-O {[%clk 0:04:47.1]} 9... Bg7 {[%clk 0:04:47.5]}
10. b4 {[%clk 0:04:45.5]} 10... O-O {[%clk 0:04:45.7]} 11. a4 {[%clk 0:04:44.3]}
11... f6 {[%clk 0:04:40.9]} 12. a5 {[%clk 0:04:41.1]} 12... g5 {[%clk
0:04:35.5]} 13. Bg3 {[%clk 0:04:39.7]} 13... h5 {[%clk 0:04:33.6]} 14. h4 {[%clk
0:04:38.3]} 14... gxh4 {[%clk 0:04:32.3]} 15. Nxh4 {[%clk 0:04:36.7]} 15... f5
{[%clk 0:04:29.3]} 16. b5 {[%clk 0:04:33.7]} 16... f4 {[%clk 0:04:28.5]} 17.
exf4 {[%clk 0:04:31.3]} 17... Bf6 {[%clk 0:04:11.6]} 18. bxc6 {[%clk 0:04:19.5]}
18... Bxh4 {[%clk 0:04:02.9]} 19. Bxh4 {[%clk 0:04:17.7]} 19... bxc6 {[%clk
0:04:02.8]} 20. Bxh5 {[%clk 0:04:14.3]} 20... Rb8 {[%clk 0:03:53.3]} 1-0

[Event "Live Chess"]
[Site "Chess.com"]
[Date "2023.05.20"]
[Round "-"]
[White "lightningorderyt"]
[Black "alanmike75"]
[Result "0-1"]
[WhiteElo "549"]
[BlackElo "1480"]
[TimeControl "300"]
[EndTime "10:44:34 PDT"]
[Termination "alanmike75 won on time"]

1. d4 {[%clk 0:04:58.4]} 1... d5 {[%clk 0:04:58.3]} 2. c4 {[%clk 0:04:56.8]}
2... c6 {[%clk 0:04:56.7]} 3. Nc3 {[%clk 0:04:54.2]} 3... Nf6 {[%clk 0:04:55.5]}
4. Bg5 {[%clk 0:04:51.7]} 4... e6 {[%clk 0:04:53.8]} 5. e3 {[%clk 0:04:48.1]}
5... Be7 {[%clk 0:04:52.5]} 6. Bd3 {[%clk 0:04:42.9]} 6... Nbd7 {[%clk
0:04:51.3]} 7. Nf3 {[%clk 0:04:40.2]} 7... O-O {[%clk 0:04:48.3]} 8. O-O {[%clk
0:04:37.9]} 8... h6 {[%clk 0:04:46.7]} 9. Bf4 {[%clk 0:04:35]} 9... a6 {[%clk
0:04:42]} 10. Qb3 {[%clk 0:04:14]} 10... dxc4 {[%clk 0:04:35.5]} 11. Bxc4 {[%clk
0:03:53.4]} 11... b5 {[%clk 0:04:33.9]} 12. Bd3 {[%clk 0:03:33.8]} 12... c5
{[%clk 0:04:32.2]} 13. Ne5 {[%clk 0:03:09.6]} 13... c4 {[%clk 0:04:29.4]} 14.
Nxc4 {[%clk 0:02:57.5]} 14... bxc4 {[%clk 0:04:26.8]} 15. Bxc4 {[%clk
0:02:56.5]} 15... Nb6 {[%clk 0:04:08.3]} 16. Bd3 {[%clk 0:02:29.5]} 16... Nbd5
{[%clk 0:04:06.1]} 17. Be4 {[%clk 0:02:16]} 17... Nxe4 {[%clk 0:03:54.6]} 18.
Nxe4 {[%clk 0:02:15]} 18... Nxf4 {[%clk 0:03:52.9]} 19. exf4 {[%clk 0:02:12.1]}
19... Qxd4 {[%clk 0:03:47.2]} 20. Qf3 {[%clk 0:01:56.5]} 20... Rb8 {[%clk
0:03:32.2]} 21. Rad1 {[%clk 0:01:51.4]} 21... Qxb2 {[%clk 0:03:23.1]} 22. f5
{[%clk 0:01:27.1]} 22... exf5 {[%clk 0:03:16.5]} 23. Ng3 {[%clk 0:01:13.3]}
23... Qf6 {[%clk 0:03:04.3]} 24. Nh5 {[%clk 0:01:01.5]} 24... Qg5 {[%clk
0:02:43.7]} 25. Nf4 {[%clk 0:00:35.9]} 25... Bb7 {[%clk 0:02:35.1]} 26. Nd5
{[%clk 0:00:29]} 26... Bxd5 {[%clk 0:02:20]} 27. Qxd5 {[%clk 0:00:26.2]} 27...
f4 {[%clk 0:02:15.1]} 28. Qxg5 {[%clk 0:00:20.2]} 28... hxg5 {[%clk 0:02:12.3]}
29. Rd5 {[%clk 0:00:18.8]} 29... f6 {[%clk 0:02:09.7]} 30. Rfd1 {[%clk
0:00:17.1]} 30... Rb2 {[%clk 0:02:00.9]} 31. f3 {[%clk 0:00:07.8]} 31... Rxa2
{[%clk 0:01:58.2]} 32. Rd7 {[%clk 0:00:06.4]} 32... Rf7 {[%clk 0:01:55.3]} 33.
Rxe7 {[%clk 0:00:02.2]} 33... Rxe7 {[%clk 0:01:53.4]} 34. Rd8+ {[%clk
0:00:00.9]} 34... Kf7 {[%clk 0:01:51.7]} 0-1

[Event "Live Chess"]
[Site "Chess.com"]
[Date "2023.05.20"]
[Round "-"]
[White "garyjc"]
[Black "jusjoel"]
[Result "1-0"]
[WhiteElo "1035"]
[BlackElo "296"]
[TimeControl "300"]
[EndTime "10:44:34 PDT"]
[Termination "garyjc won by resignation"]

1. e4 {[%clk 0:04:58.1]} 1... e5 {[%clk 0:04:57.6]} 2. Nf3 {[%clk 0:04:54.6]}
2... Nf6 {[%clk 0:04:52.3]} 3. Nc3 {[%clk 0:04:49.1]} 3... Nc6 {[%clk 0:04:43]}
4. d4 {[%clk 0:04:47.5]} 4... d5 {[%clk 0:04:31.3]} 5. dxe5 {[%clk 0:04:44.7]}
5... dxe4 {[%clk 0:04:26.4]} 6. Qxd8+ {[%clk 0:04:37.9]} 6... Kxd8 {[%clk
0:04:20.9]} 7. Ng5 {[%clk 0:04:29.8]} 7... Ke8 {[%clk 0:04:08.9]} 8. exf6 {[%clk
0:04:26.9]} 8... gxf6 {[%clk 0:04:01.3]} 9. Ngxe4 {[%clk 0:04:25.2]} 9... Bb4
{[%clk 0:03:47.8]} 10. Nxf6+ {[%clk 0:04:22.1]} 10... Ke7 {[%clk 0:03:42.7]} 11.
Nd5+ {[%clk 0:04:18.2]} 11... Kd6 {[%clk 0:03:36.1]} 12. Nxb4 {[%clk 0:04:16.5]}
12... Nxb4 {[%clk 0:03:34]} 13. Ne4+ {[%clk 0:04:09.1]} 13... Kd7 {[%clk
0:03:30.2]} 14. Bd3 {[%clk 0:04:04.8]} 14... Re8 {[%clk 0:03:26.9]} 15. O-O
{[%clk 0:04:01.5]} 15... b6 {[%clk 0:03:17]} 16. Nf6+ {[%clk 0:04:00.2]} 16...
Kd8 {[%clk 0:03:13]} 17. Nxe8 {[%clk 0:03:59.3]} 17... Kxe8 {[%clk 0:03:11.4]}
18. Re1+ {[%clk 0:03:56.3]} 18... Be6 {[%clk 0:03:03]} 19. Bb5+ {[%clk
0:03:53.4]} 19... Ke7 {[%clk 0:02:53.9]} 20. Bg5+ {[%clk 0:03:51.8]} 20... Kd6
{[%clk 0:02:45.9]} 21. Rad1+ {[%clk 0:03:45]} 21... Kc5 {[%clk 0:02:40.6]} 22.
Bd3 {[%clk 0:03:32.2]} 22... Nxd3 {[%clk 0:02:34.7]} 23. cxd3 {[%clk 0:03:27.6]}
23... Rg8 {[%clk 0:02:29.9]} 24. Be7+ {[%clk 0:03:25.6]} 24... Kc6 {[%clk
0:02:25.6]} 25. Rc1+ {[%clk 0:03:18.4]} 25... Kd7 {[%clk 0:02:18.3]} 26. Bh4
{[%clk 0:03:11]} 26... Bd5 {[%clk 0:02:14]} 27. Re7+ {[%clk 0:03:06.2]} 27...
Kd8 {[%clk 0:02:09.9]} 28. Re5+ {[%clk 0:03:02]} 28... Kd7 {[%clk 0:01:59]} 29.
Rxd5+ {[%clk 0:03:01]} 1-0

[Event "Live Chess"]
[Site "Chess.com"]
[Date "2023.05.20"]
[Round "-"]
[White "jameskwong"]
[Black "siddu198"]
[Result "1-0"]
[WhiteElo "2163"]
[BlackElo "1641"]
[TimeControl "300"]
[EndTime "10:44:53 PDT"]
[Termination "jameskwong won by resignation"]

1. d4 {[%clk 0:04:57.1]} 1... d5 {[%clk 0:04:59]} 2. c4 {[%clk 0:04:55.6]} 2...
c6 {[%clk 0:04:56.9]} 3. Nc3 {[%clk 0:04:54.3]} 3... e6 {[%clk 0:04:56]} 4. Nf3
{[%clk 0:04:52.7]} 4... Nf6 {[%clk 0:04:55.6]} 5. Bg5 {[%clk 0:04:51.6]} 5...
Be7 {[%clk 0:04:54.2]} 6. e3 {[%clk 0:04:51]} 6... Nbd7 {[%clk 0:04:49.6]} 7.
cxd5 {[%clk 0:04:49.6]} 7... cxd5 {[%clk 0:04:48.4]} 8. Bd3 {[%clk 0:04:47.6]}
8... h6 {[%clk 0:04:46.8]} 9. Bh4 {[%clk 0:04:46.3]} 9... Nb6 {[%clk 0:04:33]}
10. O-O {[%clk 0:04:42.3]} 10... O-O {[%clk 0:04:29.6]} 11. Ne5 {[%clk
0:04:40.7]} 11... Nfd7 {[%clk 0:04:22.3]} 12. Bxe7 {[%clk 0:04:29.8]} 12... Qxe7
{[%clk 0:04:21.4]} 13. f4 {[%clk 0:04:24.6]} 13... Nxe5 {[%clk 0:04:16.6]} 14.
fxe5 {[%clk 0:04:22.5]} 14... Nc4 {[%clk 0:04:15.5]} 15. Qe2 {[%clk 0:04:14.8]}
15... b5 {[%clk 0:04:13.5]} 16. Nxb5 {[%clk 0:04:04]} 16... Rb8 {[%clk
0:04:12.5]} 17. b3 {[%clk 0:03:43.1]} 17... Na3 {[%clk 0:03:28.7]} 18. Nd6
{[%clk 0:03:38.4]} 18... Bd7 {[%clk 0:03:16.7]} 19. Rac1 {[%clk 0:03:29.3]}
19... Rb6 {[%clk 0:02:58.1]} 20. Rc7 {[%clk 0:03:23.9]} 20... a6 {[%clk
0:02:33.7]} 21. Bxa6 {[%clk 0:03:18.4]} 21... Rxd6 {[%clk 0:02:32.4]} 22. exd6
{[%clk 0:03:15.4]} 22... Qxd6 {[%clk 0:02:31.9]} 23. Rfc1 {[%clk 0:03:05.6]}
23... Ra8 {[%clk 0:02:23.3]} 24. Bd3 {[%clk 0:02:59.5]} 24... Rb8 {[%clk
0:02:12.9]} 25. e4 {[%clk 0:02:43]} 25... dxe4 {[%clk 0:01:54.5]} 26. Qxe4
{[%clk 0:02:41.8]} 26... g6 {[%clk 0:01:50.4]} 27. Qe5 {[%clk 0:02:36.5]} 27...
Qxe5 {[%clk 0:01:24.7]} 28. dxe5 {[%clk 0:02:36.4]} 28... Bb5 {[%clk 0:01:17.3]}
29. Rc8+ {[%clk 0:02:28.5]} 29... Rxc8 {[%clk 0:01:16.6]} 30. Rxc8+ {[%clk
0:02:27.4]} 30... Kg7 {[%clk 0:01:15.9]} 31. Be4 {[%clk 0:02:24.3]} 31... Be2
{[%clk 0:00:59.9]} 32. Ra8 {[%clk 0:02:19.7]} 32... Nb5 {[%clk 0:00:53.5]} 33.
a4 {[%clk 0:02:17.5]} 33... Nd4 {[%clk 0:00:52.3]} 34. b4 {[%clk 0:02:15.3]}
34... Bc4 {[%clk 0:00:37.1]} 35. b5 {[%clk 0:02:12.9]} 35... Ne2+ {[%clk
0:00:34]} 36. Kf2 {[%clk 0:02:11.1]} 36... Nc3 {[%clk 0:00:31.8]} 37. Bf3 {[%clk
0:02:08.7]} 37... h5 {[%clk 0:00:24.8]} 38. b6 {[%clk 0:02:06.6]} 38... Nd5
{[%clk 0:00:12.3]} 39. b7 {[%clk 0:02:04]} 1-0

[Event "Live Chess"]
[Site "Chess.com"]
[Date "2023.05.20"]
[Round "-"]
[White "KuriyamaMiraiUA"]
[Black "Doge_Dandolo"]
[Result "0-1"]
[WhiteElo "676"]
[BlackElo "2123"]
[TimeControl "300"]
[EndTime "10:44:57 PDT"]
[Termination "Doge_Dandolo won on time"]

1. d4 {[%clk 0:04:58.6]} 1... d5 {[%clk 0:04:57.9]} 2. c4 {[%clk 0:04:57.2]}
2... c6 {[%clk 0:04:55.1]} 3. Nc3 {[%clk 0:04:55.4]} 3... Nf6 {[%clk 0:04:47.7]}
4. e3 {[%clk 0:04:53.1]} 4... a6 {[%clk 0:04:45.9]} 5. Bd3 {[%clk 0:04:52.2]}
5... dxc4 {[%clk 0:04:44.7]} 6. Bxc4 {[%clk 0:04:51.1]} 6... e6 {[%clk
0:04:43.6]} 7. Nf3 {[%clk 0:04:45.7]} 7... b5 {[%clk 0:04:42.3]} 8. Bb3 {[%clk
0:04:41.3]} 8... c5 {[%clk 0:04:40.9]} 9. dxc5 {[%clk 0:04:34.9]} 9... Bxc5
{[%clk 0:04:34]} 10. O-O {[%clk 0:04:24.3]} 10... Bb7 {[%clk 0:04:21]} 11. Ne5
{[%clk 0:04:02.2]} 11... Qc7 {[%clk 0:04:09.6]} 12. Nd3 {[%clk 0:03:42.5]} 12...
Qc6 {[%clk 0:03:57.6]} 13. Nf4 {[%clk 0:03:03]} 13... Bd6 {[%clk 0:03:49.1]} 14.
f3 {[%clk 0:02:37.6]} 14... O-O {[%clk 0:03:41.9]} 15. e4 {[%clk 0:02:29.1]}
15... Bc5+ {[%clk 0:03:37.2]} 16. Kh1 {[%clk 0:02:27]} 16... Nbd7 {[%clk
0:03:24.8]} 17. Nd3 {[%clk 0:02:05.5]} 17... Bb6 {[%clk 0:03:17.8]} 18. Re1
{[%clk 0:01:58.7]} 18... Rfd8 {[%clk 0:03:13.6]} 19. Be3 {[%clk 0:01:52.5]}
19... Bxe3 {[%clk 0:03:10.1]} 20. Rxe3 {[%clk 0:01:51.6]} 20... Ne5 {[%clk
0:03:00.2]} 21. Qc2 {[%clk 0:01:24.4]} 21... Qc7 {[%clk 0:02:55.7]} 22. Kg1
{[%clk 0:00:53.5]} 22... Rac8 {[%clk 0:02:50.8]} 23. a4 {[%clk 0:00:32.6]} 23...
Nxd3 {[%clk 0:02:45.6]} 24. Rxd3 {[%clk 0:00:29.6]} 24... Rxd3 {[%clk
0:02:42.3]} 25. Qxd3 {[%clk 0:00:26.6]} 25... Rd8 {[%clk 0:02:40.3]} 26. Qe2
{[%clk 0:00:17.3]} 26... b4 {[%clk 0:02:38.5]} 27. Na2 {[%clk 0:00:14.5]} 27...
h5 {[%clk 0:02:30.6]} 28. Rd1 {[%clk 0:00:13]} 28... Rxd1+ {[%clk 0:02:20.6]}
29. Qxd1 {[%clk 0:00:12.4]} 29... Qc5+ {[%clk 0:02:12.6]} 30. Kh1 {[%clk
0:00:08.8]} 30... a5 {[%clk 0:02:09.4]} 31. Qc2 {[%clk 0:00:04.5]} 31... Qe3
{[%clk 0:02:02]} 0-1

[Event "Live Chess"]
[Site "Chess.com"]
[Date "2023.05.20"]
[Round "-"]
[White "Albul"]
[Black "PetorPrydatko"]
[Result "1-0"]
[WhiteElo "2166"]
[BlackElo "369"]
[TimeControl "300"]
[EndTime "10:45:04 PDT"]
[Termination "Albul won by checkmate"]

1. e4 {[%clk 0:04:58.8]} 1... e5 {[%clk 0:04:56.9]} 2. Bc4 {[%clk 0:04:56.8]}
2... d6 {[%clk 0:04:49.2]} 3. Nf3 {[%clk 0:04:53.3]} 3... d5 {[%clk 0:04:28.1]}
4. exd5 {[%clk 0:04:48.5]} 4... Bb4 {[%clk 0:04:21.6]} 5. O-O {[%clk 0:04:44.8]}
5... Ne7 {[%clk 0:04:13.6]} 6. Bb5+ {[%clk 0:04:38.2]} 6... c6 {[%clk
0:04:03.4]} 7. dxc6 {[%clk 0:04:35.9]} 7... bxc6 {[%clk 0:04:01.4]} 8. Bc4
{[%clk 0:04:34.4]} 8... c5 {[%clk 0:03:59.2]} 9. Nxe5 {[%clk 0:04:28.6]} 9...
O-O {[%clk 0:03:52.2]} 10. Nxf7 {[%clk 0:04:13.7]} 10... Rxf7 {[%clk 0:03:50.2]}
11. Bxf7+ {[%clk 0:04:12.7]} 11... Kxf7 {[%clk 0:03:39.4]} 12. Qf3+ {[%clk
0:04:11.9]} 12... Kg8 {[%clk 0:03:36.5]} 13. Qxa8 {[%clk 0:04:10.5]} 13... a5
{[%clk 0:03:28.8]} 14. d3 {[%clk 0:04:01.9]} 14... Bb7 {[%clk 0:03:27]} 15. Qxb7
{[%clk 0:03:58.4]} 15... Nd7 {[%clk 0:03:02.6]} 16. a3 {[%clk 0:03:53.5]} 16...
c4 {[%clk 0:02:57.8]} 17. axb4 {[%clk 0:03:51.9]} 17... axb4 {[%clk 0:02:55.1]}
18. Ra8 {[%clk 0:03:49.8]} 18... Nb8 {[%clk 0:02:47]} 19. Rxb8 {[%clk
0:03:47.9]} 19... Nc8 {[%clk 0:02:30.4]} 20. Rxc8 {[%clk 0:03:46.4]} 20... Qf8
{[%clk 0:02:24.8]} 21. Qd5+ {[%clk 0:03:42.1]} 21... Kh8 {[%clk 0:02:20.2]} 22.
Rxf8# {[%clk 0:03:40.1]} 1-0

[Event "Live Chess"]
[Site "Chess.com"]
[Date "2023.05.20"]
[Round "-"]
[White "f4nomore"]
[Black "TDCMF"]
[Result "1-0"]
[WhiteElo "1375"]
[BlackElo "350"]
[TimeControl "300"]
[EndTime "10:45:10 PDT"]
[Termination "f4nomore won by checkmate"]

1. d4 {[%clk 0:04:57.4]} 1... d5 {[%clk 0:04:58.7]} 2. Bg5 {[%clk 0:04:55.2]}
2... f6 {[%clk 0:04:48.9]} 3. Bh4 {[%clk 0:04:52]} 3... g5 {[%clk 0:04:47.2]} 4.
Bg3 {[%clk 0:04:50.9]} 4... f5 {[%clk 0:04:42.6]} 5. h3 {[%clk 0:04:42.4]} 5...
Nf6 {[%clk 0:04:38.2]} 6. e3 {[%clk 0:04:39.5]} 6... Nc6 {[%clk 0:04:35.9]} 7.
Nc3 {[%clk 0:04:35.6]} 7... e6 {[%clk 0:04:29.5]} 8. Be2 {[%clk 0:04:33.3]} 8...
Bd6 {[%clk 0:04:27.8]} 9. Bxd6 {[%clk 0:04:27.2]} 9... Qxd6 {[%clk 0:04:21.4]}
10. Bh5+ {[%clk 0:04:25.1]} 10... Nxh5 {[%clk 0:04:16.5]} 11. Qxh5+ {[%clk
0:04:21.8]} 11... Ke7 {[%clk 0:04:10.3]} 12. Qxg5+ {[%clk 0:04:19.2]} 12... Kf7
{[%clk 0:04:06.3]} 13. Qh5+ {[%clk 0:04:15.6]} 13... Kf6 {[%clk 0:04:02.4]} 14.
Nf3 {[%clk 0:04:08.3]} 14... Rg8 {[%clk 0:03:54.4]} 15. O-O-O {[%clk 0:04:01.5]}
15... Nb4 {[%clk 0:03:35.2]} 16. a3 {[%clk 0:03:57.8]} 16... Qa6 {[%clk
0:03:20.2]} 17. Qxh7 {[%clk 0:03:49.9]} 17... Rg7 {[%clk 0:03:09.4]} 18. Qh6+
{[%clk 0:03:39.2]} 18... Rg6 {[%clk 0:03:07]} 19. Qh4+ {[%clk 0:03:36.2]} 19...
Kg7 {[%clk 0:03:01.8]} 20. Ne5 {[%clk 0:03:13.8]} 20... Rxg2 {[%clk 0:02:38.9]}
21. Rhg1 {[%clk 0:02:56]} 21... Rxg1 {[%clk 0:02:17.7]} 22. Rxg1+ {[%clk
0:02:50.6]} 22... Kf8 {[%clk 0:02:16.5]} 23. Qf6+ {[%clk 0:02:38.4]} 23... Ke8
{[%clk 0:02:15]} 24. Rg8# {[%clk 0:02:34.7]} 1-0

[Event "Live Chess"]
[Site "Chess.com"]
[Date "2023.05.20"]
[Round "-"]
[White "LutherSullivan"]
[Black "boilerboy1"]
[Result "1-0"]
[WhiteElo "1879"]
[BlackElo "1085"]
[TimeControl "300"]
[EndTime "10:45:12 PDT"]
[Termination "LutherSullivan won on time"]

1. c4 {[%clk 0:04:58]} 1... Nf6 {[%clk 0:04:56.9]} 2. g3 {[%clk 0:04:57]} 2...
g6 {[%clk 0:04:54.8]} 3. Bg2 {[%clk 0:04:56.5]} 3... c5 {[%clk 0:04:52.6]} 4.
Nc3 {[%clk 0:04:54.1]} 4... d6 {[%clk 0:04:51.7]} 5. a3 {[%clk 0:04:49.9]} 5...
Bg7 {[%clk 0:04:50.7]} 6. Rb1 {[%clk 0:04:48.3]} 6... O-O {[%clk 0:04:46.7]} 7.
Nf3 {[%clk 0:04:45.6]} 7... Nbd7 {[%clk 0:04:44.1]} 8. b4 {[%clk 0:04:41]} 8...
cxb4 {[%clk 0:04:42]} 9. axb4 {[%clk 0:04:39.9]} 9... a5 {[%clk 0:04:39.7]} 10.
b5 {[%clk 0:04:36.6]} 10... Nc5 {[%clk 0:04:34.5]} 11. Qc2 {[%clk 0:04:19.3]}
11... a4 {[%clk 0:04:31.6]} 12. Ba3 {[%clk 0:04:16.5]} 12... Nb3 {[%clk
0:04:25.2]} 13. Nxa4 {[%clk 0:04:04.9]} 13... Na5 {[%clk 0:03:43]} 14. d3 {[%clk
0:03:55.5]} 14... b6 {[%clk 0:03:38]} 15. Bb4 {[%clk 0:03:51.1]} 15... Bb7
{[%clk 0:03:25.3]} 16. O-O {[%clk 0:03:47.3]} 16... d5 {[%clk 0:03:16.2]} 17. c5
{[%clk 0:03:41.3]} 17... bxc5 {[%clk 0:02:57.8]} 18. Nxc5 {[%clk 0:03:40.1]}
18... Bc8 {[%clk 0:02:45.8]} 19. Nd4 {[%clk 0:03:23]} 19... Nb7 {[%clk
0:02:34.5]} 20. Nc6 {[%clk 0:03:20]} 20... Qc7 {[%clk 0:02:18.5]} 21. Nxb7
{[%clk 0:03:17]} 21... Qxb7 {[%clk 0:02:12.1]} 22. Nxe7+ {[%clk 0:03:11.2]}
22... Kh8 {[%clk 0:02:07.6]} 23. Qc6 {[%clk 0:03:01.6]} 23... Qxc6 {[%clk
0:01:32.2]} 24. bxc6 {[%clk 0:02:56.8]} 24... Be6 {[%clk 0:01:28.4]} 25. c7
{[%clk 0:02:52.5]} 25... Rfe8 {[%clk 0:01:18.1]} 26. Nc6 {[%clk 0:02:14.4]}
26... Ng4 {[%clk 0:00:48.8]} 27. Bd6 {[%clk 0:02:05.8]} 27... Bc8 {[%clk
0:00:24]} 28. Rb8 {[%clk 0:01:51.3]} 28... Rxe2 {[%clk 0:00:14.7]} 29. Rxa8
{[%clk 0:01:47.4]} 1-0